[Event "*** Titled Tuesday Blitz"]
[Site "Chess.com"]
[Date "2020.10.27"]
[Round "2"]
[White "Chessmatus"]
[Black "oskariot"]
[Result "0-1"]
[WhiteElo "2423"]
[BlackElo "2718"]
[TimeControl "180+1"]
[EndTime "10:19:07 PDT"]
[Termination "oskariot won by resignation"]

1. e4 {[%clk 0:03:00.9]} 1... c5 {[%clk 0:02:29.9]} 2. Nf3 {[%clk 0:03:00.8]}
2... d6 {[%clk 0:02:29.7]} 3. d4 {[%clk 0:03:01.2]} 3... cxd4 {[%clk 0:02:29.4]}
4. Nxd4 {[%clk 0:03:02.1]} 4... Nf6 {[%clk 0:02:29.6]} 5. Nc3 {[%clk 0:03:02.7]}
5... Nc6 {[%clk 0:02:29.7]} 6. Bg5 {[%clk 0:03:02.2]} 6... Bd7 {[%clk
0:02:30.2]} 7. Qd2 {[%clk 0:03:01.1]} 7... Rc8 {[%clk 0:02:29.7]} 8. O-O-O
{[%clk 0:02:56.8]} 8... Nxd4 {[%clk 0:02:29.4]} 9. Qxd4 {[%clk 0:02:56.9]} 9...
Qa5 {[%clk 0:02:30]} 10. Bxf6 {[%clk 0:02:29.8]} 10... gxf6 {[%clk 0:02:29.5]}
11. Kb1 {[%clk 0:02:30.4]} 11... Qc5 {[%clk 0:02:29.3]} 12. Qd2 {[%clk 0:02:26]}
12... Bg7 {[%clk 0:02:28.9]} 13. f4 {[%clk 0:02:02.6]} 13... f5 {[%clk
0:02:28.1]} 14. e5 {[%clk 0:02:02.8]} 14... O-O {[%clk 0:02:28.6]} 15. h4 {[%clk
0:01:43.3]} 15... Be6 {[%clk 0:02:07.5]} 16. exd6 {[%clk 0:01:19.6]} 16... exd6
{[%clk 0:01:58.5]} 17. Rh3 {[%clk 0:01:20]} 17... Qa5 {[%clk 0:01:46.5]} 18. a3
{[%clk 0:01:15.4]} 18... Kh8 {[%clk 0:01:23.7]} 19. h5 {[%clk 0:01:10.2]} 19...
h6 {[%clk 0:01:22.3]} 20. Rg3 {[%clk 0:00:46.9]} 20... Bxc3 {[%clk 0:01:02.4]}
21. Rxc3 {[%clk 0:00:46.2]} 21... Rxc3 {[%clk 0:01:02.3]} 22. Qxc3+ {[%clk
0:00:46.8]} 22... Qxc3 {[%clk 0:01:02.4]} 23. bxc3 {[%clk 0:00:47.7]} 23... d5
{[%clk 0:01:03]} 24. Be2 {[%clk 0:00:38.6]} 24... Rc8 {[%clk 0:00:57.2]} 25. Kb2
{[%clk 0:00:37.7]} 25... Kg7 {[%clk 0:00:53]} 26. Bf3 {[%clk 0:00:37.6]} 26...
Rc5 {[%clk 0:00:53]} 27. Rd4 {[%clk 0:00:27.4]} 27... b6 {[%clk 0:00:52.2]} 28.
Rd3 {[%clk 0:00:18]} 28... Kf6 {[%clk 0:00:51.8]} 29. Rd4 {[%clk 0:00:18.5]}
29... Ke7 {[%clk 0:00:52]} 30. Kb3 {[%clk 0:00:18.8]} 30... Kd6 {[%clk
0:00:52.1]} 31. Kb4 {[%clk 0:00:17.6]} 31... a5+ {[%clk 0:00:34]} 32. Kb3 {[%clk
0:00:18]} 32... Rb5+ {[%clk 0:00:34]} 33. Ka2 {[%clk 0:00:17.7]} 33... Rc5
{[%clk 0:00:34.4]} 34. Kb2 {[%clk 0:00:17.6]} 34... Rb5+ {[%clk 0:00:31.7]} 35.
Ka2 {[%clk 0:00:17.7]} 35... Rc5 {[%clk 0:00:31.7]} 36. Kb2 {[%clk 0:00:17.9]}
36... Rc7 {[%clk 0:00:32.4]} 37. Rd2 {[%clk 0:00:14.7]} 37... Kc5 {[%clk
0:00:32]} 38. Rd4 {[%clk 0:00:14.4]} 38... Rc8 {[%clk 0:00:29.3]} 39. Kc1 {[%clk
0:00:14.6]} 39... Rg8 {[%clk 0:00:27.2]} 40. Kd2 {[%clk 0:00:14.5]} 40... Rd8
{[%clk 0:00:26.3]} 41. Kd3 {[%clk 0:00:14.1]} 41... Rd7 {[%clk 0:00:25]} 42. Ke3
{[%clk 0:00:14]} 42... Rc7 {[%clk 0:00:24.4]} 43. Kd3 {[%clk 0:00:13.7]} 43...
Kd6 {[%clk 0:00:23]} 44. Kd2 {[%clk 0:00:13.6]} 44... Rc5 {[%clk 0:00:23.2]} 45.
Kd3 {[%clk 0:00:13.2]} 45... Rb5 {[%clk 0:00:23.6]} 46. Kd2 {[%clk 0:00:13.1]}
46... Kc5 {[%clk 0:00:22]} 47. Kc1 {[%clk 0:00:11.6]} 47... Kd6 {[%clk 0:00:22]}
48. c4 {[%clk 0:00:10.5]} 48... Rc5 {[%clk 0:00:21.6]} 49. cxd5 {[%clk
0:00:10.7]} 49... Bxd5 {[%clk 0:00:22.1]} 50. Kd2 {[%clk 0:00:08.9]} 50... Kc6
{[%clk 0:00:22.1]} 51. Bxd5+ {[%clk 0:00:05.6]} 51... Rxd5 {[%clk 0:00:22.3]}
52. Kc3 {[%clk 0:00:05.8]} 52... Kc5 {[%clk 0:00:22.5]} 53. Rxd5+ {[%clk
0:00:06]} 53... Kxd5 {[%clk 0:00:23.4]} 54. Kd3 {[%clk 0:00:06.4]} 54... b5
{[%clk 0:00:20.6]} 55. g3 {[%clk 0:00:06.6]} 55... b4 {[%clk 0:00:16.2]} 56. a4
{[%clk 0:00:04]} 56... f6 {[%clk 0:00:14.9]} 57. c3 {[%clk 0:00:03.9]} 57...
bxc3 {[%clk 0:00:15.8]} 58. Kxc3 {[%clk 0:00:04.1]} 58... Kc5 {[%clk 0:00:16.4]}
59. Kd3 {[%clk 0:00:02.3]} 59... Kb4 {[%clk 0:00:16.6]} 60. Kd4 {[%clk
0:00:02.9]} 60... Kxa4 {[%clk 0:00:17.1]} 61. Kc4 {[%clk 0:00:03.6]} 61... Ka3
{[%clk 0:00:17.5]} 62. Kc3 {[%clk 0:00:04.1]} 62... a4 {[%clk 0:00:18]} 63. Kc4
{[%clk 0:00:01.8]} 63... Kb2 {[%clk 0:00:17.8]} 64. Kd5 {[%clk 0:00:02.5]} 64...
a3 {[%clk 0:00:18.3]} 65. Ke6 {[%clk 0:00:03.4]} 65... a2 {[%clk 0:00:19.2]} 66.
Kxf6 {[%clk 0:00:04.2]} 66... a1=Q {[%clk 0:00:20.1]} 0-1

[Event "*** Titled Tuesday Blitz"]
[Site "Chess.com"]
[Date "2020.10.27"]
[Round "2"]
[White "andrzej"]
[Black "elohunter1999"]
[Result "0-1"]
[WhiteElo "2298"]
[BlackElo "2522"]
[TimeControl "180+1"]
[EndTime "10:19:07 PDT"]
[Termination "elohunter1999 won on time"]

1. e4 {[%clk 0:03:00.9]} 1... c5 {[%clk 0:02:59.5]} 2. Nf3 {[%clk 0:03:00.7]}
2... e6 {[%clk 0:02:59.6]} 3. d4 {[%clk 0:03:01]} 3... cxd4 {[%clk 0:03:00.5]}
4. Nxd4 {[%clk 0:03:01.5]} 4... Nf6 {[%clk 0:03:01.1]} 5. Nc3 {[%clk 0:03:01.4]}
5... Nc6 {[%clk 0:03:01.3]} 6. g3 {[%clk 0:02:55.2]} 6... Bb4 {[%clk 0:02:49.6]}
7. Bg2 {[%clk 0:02:53.5]} 7... O-O {[%clk 0:02:43.3]} 8. O-O {[%clk 0:02:52.7]}
8... d5 {[%clk 0:02:38.2]} 9. exd5 {[%clk 0:02:46.8]} 9... Nxd5 {[%clk
0:02:35.2]} 10. Nxd5 {[%clk 0:02:46.2]} 10... exd5 {[%clk 0:02:36.1]} 11. c3
{[%clk 0:02:41.8]} 11... Be7 {[%clk 0:02:34.6]} 12. Re1 {[%clk 0:02:39.4]} 12...
Bf6 {[%clk 0:02:33.1]} 13. Nb3 {[%clk 0:02:32.4]} 13... Be6 {[%clk 0:02:25.9]}
14. Nc5 {[%clk 0:02:28.1]} 14... Qc8 {[%clk 0:02:12]} 15. Qb3 {[%clk 0:02:07.7]}
15... b6 {[%clk 0:02:07]} 16. Nxe6 {[%clk 0:02:04.9]} 16... fxe6 {[%clk
0:02:07.9]} 17. Bh3 {[%clk 0:02:04.7]} 17... Re8 {[%clk 0:01:57.1]} 18. Bf4
{[%clk 0:01:59.8]} 18... Na5 {[%clk 0:01:54.6]} 19. Qa4 {[%clk 0:01:51.5]} 19...
Kf7 {[%clk 0:01:49.2]} 20. Re2 {[%clk 0:01:43.4]} 20... Qc4 {[%clk 0:01:44.1]}
21. Qxc4 {[%clk 0:01:42.6]} 21... Nxc4 {[%clk 0:01:45]} 22. Rae1 {[%clk
0:01:42.4]} 22... e5 {[%clk 0:01:42.6]} 23. Bc1 {[%clk 0:01:42.2]} 23... Rad8
{[%clk 0:01:39.9]} 24. Bg2 {[%clk 0:01:27.4]} 24... b5 {[%clk 0:01:35]} 25. h4
{[%clk 0:01:18.4]} 25... a5 {[%clk 0:01:24.6]} 26. Rd1 {[%clk 0:01:17.7]} 26...
d4 {[%clk 0:01:15.4]} 27. b3 {[%clk 0:01:01.9]} 27... Nb6 {[%clk 0:00:46.9]} 28.
cxd4 {[%clk 0:00:57.4]} 28... exd4 {[%clk 0:00:43.9]} 29. Red2 {[%clk
0:00:53.8]} 29... Nd5 {[%clk 0:00:33.3]} 30. Bxd5+ {[%clk 0:00:50.5]} 30... Rxd5
{[%clk 0:00:34.2]} 31. Bb2 {[%clk 0:00:51]} 31... Red8 {[%clk 0:00:32.1]} 32.
Rd3 {[%clk 0:00:51.2]} 32... a4 {[%clk 0:00:30.1]} 33. bxa4 {[%clk 0:00:47.1]}
33... bxa4 {[%clk 0:00:31]} 34. Kg2 {[%clk 0:00:47.2]} 34... Rb5 {[%clk
0:00:27.8]} 35. R1d2 {[%clk 0:00:38.8]} 35... h5 {[%clk 0:00:25.6]} 36. Kf3
{[%clk 0:00:38.2]} 36... Rf5+ {[%clk 0:00:23.3]} 37. Kg2 {[%clk 0:00:33.5]}
37... Rfd5 {[%clk 0:00:23.3]} 38. Kf3 {[%clk 0:00:33.3]} 38... g5 {[%clk
0:00:21.5]} 39. hxg5 {[%clk 0:00:23.6]} 39... Bxg5 {[%clk 0:00:22.4]} 40. Rc2
{[%clk 0:00:21.7]} 40... Bf6 {[%clk 0:00:22.2]} 41. Rc7+ {[%clk 0:00:20.4]}
41... Kg6 {[%clk 0:00:22.5]} 42. Rc6 {[%clk 0:00:20.3]} 42... Kf5 {[%clk
0:00:21.5]} 43. Bc1 {[%clk 0:00:18.4]} 43... R8d6 {[%clk 0:00:18.9]} 44. Rxd6
{[%clk 0:00:16.5]} 44... Rxd6 {[%clk 0:00:19.8]} 45. Bb2 {[%clk 0:00:16.3]}
45... Rd5 {[%clk 0:00:16.1]} 46. Ke2 {[%clk 0:00:15.7]} 46... Ke4 {[%clk
0:00:13.4]} 47. f3+ {[%clk 0:00:14.6]} 47... Kf5 {[%clk 0:00:14]} 48. Kd2 {[%clk
0:00:11.7]} 48... Ke5 {[%clk 0:00:11.4]} 49. Ke2 {[%clk 0:00:11.5]} 49... Kd6
{[%clk 0:00:11.7]} 50. f4 {[%clk 0:00:10]} 50... Ke6 {[%clk 0:00:11.9]} 51. Kf3
{[%clk 0:00:10.4]} 51... Kf5 {[%clk 0:00:12.6]} 52. Ba3 {[%clk 0:00:09.2]} 52...
Rb5 {[%clk 0:00:11.7]} 53. Rd2 {[%clk 0:00:07.9]} 53... Rb1 {[%clk 0:00:11.6]}
54. Bb2 {[%clk 0:00:07.3]} 54... Rf1+ {[%clk 0:00:11.4]} 55. Ke2 {[%clk
0:00:06.6]} 55... Rh1 {[%clk 0:00:11.3]} 56. Kd3 {[%clk 0:00:04.6]} 56... Rg1
{[%clk 0:00:09.3]} 57. Bxd4 {[%clk 0:00:03.2]} 57... Rxg3+ {[%clk 0:00:09.9]}
58. Kc4 {[%clk 0:00:03.6]} 58... Bxd4 {[%clk 0:00:09.8]} 59. Rxd4 {[%clk
0:00:03]} 59... h4 {[%clk 0:00:10.7]} 60. Kd5 {[%clk 0:00:01.5]} 60... h3 {[%clk
0:00:11]} 61. Rd1 {[%clk 0:00:01.2]} 61... Kxf4 {[%clk 0:00:10.5]} 0-1

[Event "*** Titled Tuesday Blitz"]
[Site "Chess.com"]
[Date "2020.10.27"]
[Round "2"]
[White "Fischerev7"]
[Black "mr65"]
[Result "0-1"]
[WhiteElo "2423"]
[BlackElo "2198"]
[TimeControl "180+1"]
[EndTime "10:19:07 PDT"]
[Termination "mr65 won by checkmate"]

1. e4 {[%clk 0:02:54.2]} 1... e5 {[%clk 0:02:58.9]} 2. Nf3 {[%clk 0:02:53.7]}
2... Nc6 {[%clk 0:02:58.9]} 3. Bb5 {[%clk 0:02:52.1]} 3... a6 {[%clk 0:02:58.4]}
4. Ba4 {[%clk 0:02:51.9]} 4... Nf6 {[%clk 0:02:58.4]} 5. O-O {[%clk 0:02:49.6]}
5... Be7 {[%clk 0:02:58.1]} 6. d3 {[%clk 0:02:33.1]} 6... b5 {[%clk 0:02:53.8]}
7. Bb3 {[%clk 0:02:33.1]} 7... O-O {[%clk 0:02:53.2]} 8. a4 {[%clk 0:02:32.1]}
8... Bb7 {[%clk 0:02:50.4]} 9. a5 {[%clk 0:02:23.8]} 9... d5 {[%clk 0:02:47.5]}
10. Nc3 {[%clk 0:02:17.1]} 10... d4 {[%clk 0:02:42.7]} 11. Ne2 {[%clk
0:02:16.8]} 11... Nd7 {[%clk 0:02:35.9]} 12. Ng3 {[%clk 0:02:09.7]} 12... g6
{[%clk 0:02:30.4]} 13. Bh6 {[%clk 0:02:05.4]} 13... Re8 {[%clk 0:02:29.8]} 14.
c3 {[%clk 0:02:05.9]} 14... Nc5 {[%clk 0:02:16.2]} 15. cxd4 {[%clk 0:01:49.3]}
15... Nxd4 {[%clk 0:02:08.3]} 16. Ba2 {[%clk 0:01:23.8]} 16... Bf6 {[%clk
0:01:57]} 17. b4 {[%clk 0:01:15.1]} 17... Nce6 {[%clk 0:01:53]} 18. Rc1 {[%clk
0:01:05.4]} 18... Rc8 {[%clk 0:01:29.2]} 19. Nxd4 {[%clk 0:00:53.2]} 19... Qxd4
{[%clk 0:01:20.8]} 20. Qf3 {[%clk 0:00:52.8]} 20... Qd8 {[%clk 0:01:05.8]} 21.
Rfd1 {[%clk 0:00:34.8]} 21... Qe7 {[%clk 0:01:05]} 22. Rb1 {[%clk 0:00:24.5]}
22... c5 {[%clk 0:00:56.8]} 23. bxc5 {[%clk 0:00:23]} 23... Rxc5 {[%clk
0:00:56.4]} 24. Bd2 {[%clk 0:00:22.7]} 24... Nd4 {[%clk 0:00:41.8]} 25. Qg4
{[%clk 0:00:22.1]} 25... h5 {[%clk 0:00:40.3]} 26. Nxh5 {[%clk 0:00:15.7]} 26...
Bc8 {[%clk 0:00:29.9]} 27. Qg3 {[%clk 0:00:15.6]} 27... Ne2+ {[%clk 0:00:29]}
28. Kh1 {[%clk 0:00:09]} 28... Nxg3+ {[%clk 0:00:28.6]} 29. Nxg3 {[%clk
0:00:09.9]} 29... Be6 {[%clk 0:00:26.7]} 30. Bxe6 {[%clk 0:00:08.6]} 30... Qxe6
{[%clk 0:00:26.4]} 31. Bb4 {[%clk 0:00:07.7]} 31... Rc2 {[%clk 0:00:25.1]} 32.
Nf1 {[%clk 0:00:07.3]} 32... Rec8 {[%clk 0:00:23.7]} 33. Kg1 {[%clk 0:00:06.7]}
33... Qa2 {[%clk 0:00:21.4]} 34. Be1 {[%clk 0:00:05.1]} 34... Be7 {[%clk
0:00:18.1]} 35. Ne3 {[%clk 0:00:05.1]} 35... Qa3 {[%clk 0:00:17.2]} 36. Nxc2
{[%clk 0:00:04.6]} 36... Rxc2 {[%clk 0:00:15.6]} 37. Ra1 {[%clk 0:00:05.2]}
37... Qb2 {[%clk 0:00:14.5]} 38. Rab1 {[%clk 0:00:05.5]} 38... Qa3 {[%clk
0:00:14.6]} 39. Ra1 {[%clk 0:00:05.2]} 39... Qc5 {[%clk 0:00:14.4]} 40. Rab1
{[%clk 0:00:04.7]} 40... Qc6 {[%clk 0:00:14.2]} 41. Ra1 {[%clk 0:00:04.7]} 41...
Bc5 {[%clk 0:00:14]} 42. Rab1 {[%clk 0:00:04.4]} 42... Bd4 {[%clk 0:00:13.9]}
43. Kf1 {[%clk 0:00:01.5]} 43... Qc7 {[%clk 0:00:11.9]} 44. Rd2 {[%clk
0:00:01.8]} 44... Rxd2 {[%clk 0:00:10.4]} 45. Bxd2 {[%clk 0:00:02.7]} 45... Qc2
{[%clk 0:00:10.1]} 46. Re1 {[%clk 0:00:02.2]} 46... Qxd3+ {[%clk 0:00:09.8]} 47.
Re2 {[%clk 0:00:02.2]} 47... Bc3 {[%clk 0:00:09.3]} 48. Be1 {[%clk 0:00:02.8]}
48... Bxe1 {[%clk 0:00:08.9]} 49. Kxe1 {[%clk 0:00:03.4]} 49... Qc3+ {[%clk
0:00:08.9]} 50. Kf1 {[%clk 0:00:03.1]} 50... Qxa5 {[%clk 0:00:07.9]} 51. Re1
{[%clk 0:00:03.7]} 51... Qb6 {[%clk 0:00:07.8]} 52. f3 {[%clk 0:00:04.2]} 52...
b4 {[%clk 0:00:08]} 53. Rc1 {[%clk 0:00:04.2]} 53... b3 {[%clk 0:00:08.5]} 54.
Rc8+ {[%clk 0:00:04.8]} 54... Kg7 {[%clk 0:00:08.2]} 55. Rc1 {[%clk 0:00:05.4]}
55... b2 {[%clk 0:00:08.4]} 56. Rb1 {[%clk 0:00:06.2]} 56... a5 {[%clk
0:00:08.7]} 57. Ke2 {[%clk 0:00:06.7]} 57... a4 {[%clk 0:00:09.6]} 58. Kd2
{[%clk 0:00:07.6]} 58... a3 {[%clk 0:00:10.2]} 59. Kc2 {[%clk 0:00:07.8]} 59...
a2 {[%clk 0:00:10.4]} 60. Rxb2 {[%clk 0:00:08.5]} 60... Qc6+ {[%clk 0:00:08.2]}
61. Kb3 {[%clk 0:00:07.8]} 61... a1=Q {[%clk 0:00:07.9]} 62. Ra2 {[%clk
0:00:07.9]} 62... Qb1+ {[%clk 0:00:07.4]} 63. Ka3 {[%clk 0:00:08]} 63... Qa6#
{[%clk 0:00:06.7]} 0-1

[Event "*** Titled Tuesday Blitz"]
[Site "Chess.com"]
[Date "2020.10.27"]
[Round "2"]
[White "XDPS"]
[Black "KaterinaMiroshnik"]
[Result "1-0"]
[WhiteElo "2742"]
[BlackElo "2494"]
[TimeControl "180+1"]
[EndTime "10:19:09 PDT"]
[Termination "XDPS won by resignation"]

1. e4 {[%clk 0:03:00.9]} 1... d6 {[%clk 0:03:00.9]} 2. d4 {[%clk 0:02:57.8]}
2... Nd7 {[%clk 0:03:01.8]} 3. Bd3 {[%clk 0:02:55.1]} 3... Ngf6 {[%clk
0:03:01.1]} 4. Nf3 {[%clk 0:02:54.1]} 4... e5 {[%clk 0:03:01.6]} 5. c3 {[%clk
0:02:54.2]} 5... Be7 {[%clk 0:03:01.8]} 6. O-O {[%clk 0:02:54.8]} 6... O-O
{[%clk 0:03:02.3]} 7. Re1 {[%clk 0:02:55.5]} 7... c6 {[%clk 0:03:02.7]} 8. Nbd2
{[%clk 0:02:56]} 8... Qc7 {[%clk 0:03:03.2]} 9. Nf1 {[%clk 0:02:56.6]} 9... b6
{[%clk 0:03:03.1]} 10. Ng3 {[%clk 0:02:57.1]} 10... Re8 {[%clk 0:03:01.4]} 11.
a4 {[%clk 0:02:57.6]} 11... a6 {[%clk 0:03:00.5]} 12. h3 {[%clk 0:02:57.5]}
12... Bb7 {[%clk 0:02:59.8]} 13. Be3 {[%clk 0:02:57.8]} 13... Bf8 {[%clk
0:02:59.7]} 14. Qd2 {[%clk 0:02:53.5]} 14... Rad8 {[%clk 0:02:58.2]} 15. Rad1
{[%clk 0:02:53.1]} 15... g6 {[%clk 0:02:56.4]} 16. Bh6 {[%clk 0:02:49.7]} 16...
Be7 {[%clk 0:02:51.6]} 17. Bg5 {[%clk 0:02:46.8]} 17... Bf8 {[%clk 0:02:50.9]}
18. Bc2 {[%clk 0:02:39]} 18... Bg7 {[%clk 0:02:48]} 19. Bh6 {[%clk 0:02:28.9]}
19... Bh8 {[%clk 0:02:46.6]} 20. Bb3 {[%clk 0:02:26]} 20... c5 {[%clk
0:02:23.4]} 21. d5 {[%clk 0:02:24.4]} 21... b5 {[%clk 0:02:18.6]} 22. Nh2 {[%clk
0:02:19.3]} 22... c4 {[%clk 0:02:17.3]} 23. Bc2 {[%clk 0:02:19.3]} 23... Nc5
{[%clk 0:02:18]} 24. h4 {[%clk 0:02:14.6]} 24... bxa4 {[%clk 0:02:05.7]} 25. h5
{[%clk 0:02:13.7]} 25... Nb3 {[%clk 0:02:01.6]} 26. Qe3 {[%clk 0:01:54.4]} 26...
Bc8 {[%clk 0:01:53.4]} 27. Qf3 {[%clk 0:01:48.9]} 27... Nd7 {[%clk 0:01:24.4]}
28. Ng4 {[%clk 0:01:42.4]} 28... f6 {[%clk 0:01:16.1]} 29. Kh2 {[%clk
0:01:13.5]} 29... Re7 {[%clk 0:01:08.5]} 30. Rh1 {[%clk 0:01:12.4]} 30... Rf7
{[%clk 0:00:54.4]} 31. Kg1 {[%clk 0:01:10]} 31... g5 {[%clk 0:00:50]} 32. Nf5
{[%clk 0:01:01.5]} 32... Ndc5 {[%clk 0:00:48.8]} 33. Nge3 {[%clk 0:00:56.8]}
33... Bd7 {[%clk 0:00:40.2]} 34. Rh3 {[%clk 0:00:55.9]} 34... Nd3 {[%clk
0:00:34.2]} 35. Rg3 {[%clk 0:00:39.8]} 35... Bxf5 {[%clk 0:00:25]} 36. Nxf5
{[%clk 0:00:39]} 36... Nf4 {[%clk 0:00:24.8]} 37. Bxg5 {[%clk 0:00:33.6]} 37...
fxg5 {[%clk 0:00:24]} 38. Rxg5+ {[%clk 0:00:34.5]} 38... Bg7 {[%clk 0:00:24.2]}
39. h6 {[%clk 0:00:34]} 39... Ng6 {[%clk 0:00:23.2]} 40. hxg7 {[%clk 0:00:33.9]}
40... Nc5 {[%clk 0:00:20.1]} 41. Qh5 {[%clk 0:00:31.3]} 41... Rxg7 {[%clk
0:00:18.1]} 42. Nxg7 {[%clk 0:00:15.7]} 42... Qxg7 {[%clk 0:00:19]} 43. Re1
{[%clk 0:00:15.9]} 43... Rf8 {[%clk 0:00:19.3]} 44. Re3 {[%clk 0:00:16.1]} 44...
Rf4 {[%clk 0:00:19.4]} 45. Qh3 {[%clk 0:00:13]} 45... Nd7 {[%clk 0:00:14.9]} 46.
Bxa4 {[%clk 0:00:10.9]} 46... Nf6 {[%clk 0:00:14.2]} 47. Qc8+ {[%clk 0:00:10.6]}
47... Kf7 {[%clk 0:00:14]} 48. Qe6+ {[%clk 0:00:10.9]} 48... Kf8 {[%clk
0:00:13.6]} 49. Qxd6+ {[%clk 0:00:11.3]} 49... Kf7 {[%clk 0:00:12.3]} 50. Qe6+
{[%clk 0:00:10.6]} 50... Kf8 {[%clk 0:00:12.1]} 51. Reg3 {[%clk 0:00:10.8]}
51... Qh6 {[%clk 0:00:10.5]} 52. Qc8+ {[%clk 0:00:09.7]} 52... Kg7 {[%clk
0:00:09.9]} 53. Qc7+ {[%clk 0:00:09]} 53... Kf8 {[%clk 0:00:10.1]} 54. Qd6+
{[%clk 0:00:08.6]} 54... Kg7 {[%clk 0:00:10.2]} 55. Qxe5 {[%clk 0:00:09]} 55...
Rh4 {[%clk 0:00:09.5]} 56. Qe7+ {[%clk 0:00:08]} 56... Kg8 {[%clk 0:00:08.6]}
57. Qd8+ {[%clk 0:00:06.3]} 57... Kg7 {[%clk 0:00:08.2]} 58. Kf1 {[%clk
0:00:06.6]} 58... Rxe4 {[%clk 0:00:07.1]} 59. Qc7+ {[%clk 0:00:05.4]} 59... Kg8
{[%clk 0:00:06.7]} 60. Qc8+ {[%clk 0:00:05]} 60... Kg7 {[%clk 0:00:07]} 61. Qh3
{[%clk 0:00:05.6]} 61... Qxh3 {[%clk 0:00:05.5]} 62. gxh3 {[%clk 0:00:06.5]}
62... Nxd5 {[%clk 0:00:05.3]} 63. Rxd5 {[%clk 0:00:06.5]} 1-0

[Event "*** Titled Tuesday Blitz"]
[Site "Chess.com"]
[Date "2020.10.27"]
[Round "2"]
[White "VitaliyBernadskiy"]
[Black "BursaBBSatranc"]
[Result "1-0"]
[WhiteElo "2760"]
[BlackElo "2509"]
[TimeControl "180+1"]
[EndTime "10:19:10 PDT"]
[Termination "VitaliyBernadskiy won by resignation"]

1. e4 {[%clk 0:03:00.9]} 1... e5 {[%clk 0:02:59.8]} 2. Nf3 {[%clk 0:03:01]} 2...
Nf6 {[%clk 0:02:59.8]} 3. Nxe5 {[%clk 0:02:59.2]} 3... d6 {[%clk 0:03:00]} 4.
Nf3 {[%clk 0:02:59.1]} 4... Nxe4 {[%clk 0:03:00.3]} 5. d4 {[%clk 0:02:57.8]}
5... d5 {[%clk 0:03:00.4]} 6. Bd3 {[%clk 0:02:58.7]} 6... Bd6 {[%clk 0:03:00.5]}
7. O-O {[%clk 0:02:58.4]} 7... O-O {[%clk 0:03:01.1]} 8. Re1 {[%clk 0:02:56.6]}
8... Nf6 {[%clk 0:02:35.7]} 9. Bg5 {[%clk 0:02:53.6]} 9... Bg4 {[%clk
0:02:32.5]} 10. h3 {[%clk 0:02:51]} 10... Bh5 {[%clk 0:02:32.1]} 11. Nbd2 {[%clk
0:02:49.8]} 11... Nbd7 {[%clk 0:02:31.2]} 12. c3 {[%clk 0:02:49.3]} 12... c6
{[%clk 0:02:31.3]} 13. Qb3 {[%clk 0:02:48.2]} 13... Qb6 {[%clk 0:02:30.7]} 14.
Ne5 {[%clk 0:02:48.1]} 14... Bg6 {[%clk 0:02:12.9]} 15. Bf1 {[%clk 0:02:41.4]}
15... Rfe8 {[%clk 0:02:04.3]} 16. Nxg6 {[%clk 0:02:26.2]} 16... hxg6 {[%clk
0:02:03.1]} 17. g3 {[%clk 0:02:24.4]} 17... Kf8 {[%clk 0:01:32.8]} 18. h4 {[%clk
0:02:24.1]} 18... Rxe1 {[%clk 0:01:32.3]} 19. Rxe1 {[%clk 0:02:24.6]} 19... Re8
{[%clk 0:01:33]} 20. Rxe8+ {[%clk 0:02:22.9]} 20... Nxe8 {[%clk 0:01:33.9]} 21.
Bh3 {[%clk 0:02:21.5]} 21... Nef6 {[%clk 0:01:30.2]} 22. Nf3 {[%clk 0:02:15.3]}
22... Qc7 {[%clk 0:01:21.1]} 23. Bg2 {[%clk 0:01:47.5]} 23... Ne4 {[%clk
0:01:18.5]} 24. Be3 {[%clk 0:01:47.5]} 24... Ndf6 {[%clk 0:01:13.7]} 25. Qd1
{[%clk 0:01:45.4]} 25... Ng4 {[%clk 0:01:10.6]} 26. Qe2 {[%clk 0:01:45.4]} 26...
Nxe3 {[%clk 0:01:06.1]} 27. Qxe3 {[%clk 0:01:46.3]} 27... Qa5 {[%clk 0:00:58.2]}
28. Ng5 {[%clk 0:01:11.7]} 28... Nxg5 {[%clk 0:00:57.6]} 29. Qxg5 {[%clk
0:01:12.6]} 29... Be7 {[%clk 0:00:53.8]} 30. Qe5 {[%clk 0:01:12.2]} 30... Qd8
{[%clk 0:00:51]} 31. Bh3 {[%clk 0:01:12.1]} 31... Qd6 {[%clk 0:00:49.7]} 32.
Qxd6 {[%clk 0:01:03]} 32... Bxd6 {[%clk 0:00:50.6]} 33. Bc8 {[%clk 0:01:03.1]}
33... Ke7 {[%clk 0:00:41.4]} 34. Bxb7 {[%clk 0:01:02.9]} 34... Kd7 {[%clk
0:00:41.5]} 35. Ba6 {[%clk 0:00:36.5]} 35... Kc7 {[%clk 0:00:40.4]} 36. Kg2
{[%clk 0:00:36.8]} 36... Kb6 {[%clk 0:00:37.8]} 37. Bd3 {[%clk 0:00:37.7]} 37...
a5 {[%clk 0:00:38.3]} 38. a4 {[%clk 0:00:37.1]} 38... Kc7 {[%clk 0:00:37.1]} 39.
f4 {[%clk 0:00:36.5]} 39... Kd7 {[%clk 0:00:34.9]} 40. Kf3 {[%clk 0:00:36.8]}
40... Ke7 {[%clk 0:00:34.6]} 41. g4 {[%clk 0:00:37.3]} 41... Kd7 {[%clk
0:00:33.6]} 42. g5 {[%clk 0:00:37.5]} 42... Be7 {[%clk 0:00:26]} 43. Kg4 {[%clk
0:00:36]} 43... Kd6 {[%clk 0:00:22.7]} 44. b4 {[%clk 0:00:20.8]} 44... axb4
{[%clk 0:00:22.8]} 45. cxb4 {[%clk 0:00:21.7]} 45... Kc7 {[%clk 0:00:21.9]} 46.
b5 {[%clk 0:00:21.1]} 46... c5 {[%clk 0:00:19.4]} 47. dxc5 {[%clk 0:00:20.5]}
47... Bxc5 {[%clk 0:00:19.8]} 48. f5 {[%clk 0:00:19.8]} 48... gxf5+ {[%clk
0:00:19.7]} 49. Kxf5 {[%clk 0:00:20.4]} 49... Be7 {[%clk 0:00:16.1]} 50. h5
{[%clk 0:00:19.5]} 50... Bf8 {[%clk 0:00:15.6]} 51. a5 {[%clk 0:00:19]} 51...
Bb4 {[%clk 0:00:13.5]} 52. a6 {[%clk 0:00:15.7]} 52... Kb6 {[%clk 0:00:13.7]}
53. Ke5 {[%clk 0:00:12.9]} 53... Bd2 {[%clk 0:00:12.6]} 54. Kf5 {[%clk
0:00:06.4]} 54... Bc3 {[%clk 0:00:12.3]} 55. h6 {[%clk 0:00:06.3]} 55... g6+
{[%clk 0:00:10.5]} 56. Kg4 {[%clk 0:00:06.3]} 56... Be5 {[%clk 0:00:10.3]} 57.
h7 {[%clk 0:00:06.1]} 57... Bg7 {[%clk 0:00:09.8]} 58. Be2 {[%clk 0:00:06.1]}
58... d4 {[%clk 0:00:09.5]} 59. Bc4 {[%clk 0:00:06.2]} 59... f6 {[%clk
0:00:07.9]} 60. gxf6 {[%clk 0:00:05.7]} 60... Bxf6 {[%clk 0:00:08.8]} 61. Bd3
{[%clk 0:00:05]} 61... Ka7 {[%clk 0:00:08.2]} 62. Bxg6 {[%clk 0:00:04.7]} 62...
Kb6 {[%clk 0:00:08.8]} 63. Bd3 {[%clk 0:00:05.6]} 63... Ka7 {[%clk 0:00:07.5]}
64. Kf5 {[%clk 0:00:06.5]} 1-0